[Event "Early-Titled-Tuesday-Blitz-February-27-2024"]
[Site "Chess.com"]
[Date "2024.02.27"]
[Round "7"]
[White "BilodeauA"]
[Black "scarabee43"]
[Result "1-0"]
[WhiteElo "3024"]
[BlackElo "2884"]
[TimeControl "180+1"]
[EndTime "9:14:28 PST"]
[Termination "BilodeauA won by checkmate"]

1. e4 {[%clk 0:03:00.9]} 1... c5 {[%clk 0:02:59.4]} 2. Nf3 {[%clk 0:03:00.7]}
2... e6 {[%clk 0:02:58.3]} 3. Nc3 {[%clk 0:02:59.5]} 3... Nc6 {[%clk 0:02:57.8]}
4. h3 {[%clk 0:02:59.6]} 4... a6 {[%clk 0:02:53.4]} 5. d4 {[%clk 0:02:59.6]}
5... cxd4 {[%clk 0:02:53.2]} 6. Nxd4 {[%clk 0:03:00.5]} 6... Qc7 {[%clk
0:02:50.8]} 7. Nxc6 {[%clk 0:03:00.5]} 7... Qxc6 {[%clk 0:02:48.3]} 8. Bd3
{[%clk 0:03:00.8]} 8... b5 {[%clk 0:02:48.6]} 9. a4 {[%clk 0:02:58.5]} 9... b4
{[%clk 0:02:47.8]} 10. Ne2 {[%clk 0:02:58.5]} 10... Bb7 {[%clk 0:02:46.5]} 11.
O-O {[%clk 0:02:56.3]} 11... Nf6 {[%clk 0:02:46.1]} 12. Ng3 {[%clk 0:02:45.5]}
12... h5 {[%clk 0:02:31.8]} 13. Re1 {[%clk 0:02:37.3]} 13... h4 {[%clk 0:02:32]}
14. Nf1 {[%clk 0:02:36.7]} 14... Bd6 {[%clk 0:02:29.5]} 15. Nd2 {[%clk 0:02:19]}
15... Rc8 {[%clk 0:02:07.5]} 16. Nf3 {[%clk 0:02:15.5]} 16... Bb8 {[%clk
0:02:07.8]} 17. Bg5 {[%clk 0:02:12.3]} 17... Nh5 {[%clk 0:02:06.1]} 18. Bxh4
{[%clk 0:01:46.7]} 18... f6 {[%clk 0:01:46.2]} 19. e5 {[%clk 0:01:39.8]} 19...
Bxe5 {[%clk 0:01:32.9]} 20. Be4 {[%clk 0:01:29.9]} 20... d5 {[%clk 0:01:12.6]}
21. Bg6+ {[%clk 0:01:29]} 21... Kf8 {[%clk 0:01:09.6]} 22. Nxe5 {[%clk
0:01:29.2]} 22... fxe5 {[%clk 0:01:10.2]} 23. Bxh5 {[%clk 0:01:27.8]} 23... Qxc2
{[%clk 0:01:05.8]} 24. Bg3 {[%clk 0:01:12.3]} 24... e4 {[%clk 0:00:59.3]} 25.
Qg4 {[%clk 0:01:06.2]} 25... Qxb2 {[%clk 0:00:59.3]} 26. Bd6+ {[%clk 0:01:00.3]}
26... Kg8 {[%clk 0:00:58.8]} 27. Qxe6+ {[%clk 0:01:00.4]} 27... Kh7 {[%clk
0:00:59.2]} 28. Bg6+ {[%clk 0:00:59.2]} 28... Kh6 {[%clk 0:00:58.7]} 29. Bf4#
{[%clk 0:00:59.8]} 1-0

[Event "Early-Titled-Tuesday-Blitz-February-27-2024"]
[Site "Chess.com"]
[Date "2024.02.27"]
[Round "7"]
[White "koncheto"]
[Black "rhungaski"]
[Result "0-1"]
[WhiteElo "2455"]
[BlackElo "2599"]
[TimeControl "180+1"]
[EndTime "9:14:30 PST"]
[Termination "rhungaski won by resignation"]

1. e4 {[%clk 0:03:00.9]} 1... c5 {[%clk 0:02:59]} 2. Nf3 {[%clk 0:03:00.7]} 2...
Nc6 {[%clk 0:02:58.7]} 3. d4 {[%clk 0:03:00.6]} 3... cxd4 {[%clk 0:02:59.6]} 4.
Nxd4 {[%clk 0:03:01.5]} 4... e5 {[%clk 0:02:58.7]} 5. Nb5 {[%clk 0:02:58.5]}
5... a6 {[%clk 0:02:58.4]} 6. Nd6+ {[%clk 0:02:58.2]} 6... Bxd6 {[%clk
0:02:59.1]} 7. Qxd6 {[%clk 0:02:59]} 7... Qf6 {[%clk 0:02:59.7]} 8. Qd1 {[%clk
0:02:45.3]} 8... Qg6 {[%clk 0:02:59.6]} 9. Nc3 {[%clk 0:02:42.3]} 9... d5 {[%clk
0:03:00.3]} 10. Nxd5 {[%clk 0:02:14.9]} 10... Qxe4+ {[%clk 0:02:59.6]} 11. Be2
{[%clk 0:01:35.2]} 11... Nd4 {[%clk 0:02:42.7]} 12. Nc7+ {[%clk 0:01:25.9]}
12... Ke7 {[%clk 0:02:42.5]} 13. Nxa8 {[%clk 0:01:22.5]} 13... Qxg2 {[%clk
0:02:42]} 14. Rf1 {[%clk 0:00:58.8]} 14... Bf5 {[%clk 0:02:41.1]} 15. Bd3 {[%clk
0:00:34.7]} 15... Nf3+ {[%clk 0:02:33.4]} 16. Ke2 {[%clk 0:00:34]} 16... Bg4
{[%clk 0:02:31.8]} 17. Ke3 {[%clk 0:00:19.9]} 17... Nf6 {[%clk 0:02:13.7]} 18.
c4 {[%clk 0:00:20.1]} 18... Rxa8 {[%clk 0:02:09.9]} 19. Qb3 {[%clk 0:00:17.2]}
19... b5 {[%clk 0:01:47.8]} 20. Bd2 {[%clk 0:00:14.3]} 20... Qxh2 {[%clk
0:01:44.3]} 21. Bb4+ {[%clk 0:00:07.6]} 21... Ke8 {[%clk 0:01:40.6]} 0-1

[Event "Early-Titled-Tuesday-Blitz-February-27-2024"]
[Site "Chess.com"]
[Date "2024.02.27"]
[Round "7"]
[White "arenal72"]
[Black "Adar_07"]
[Result "1-0"]
[WhiteElo "2614"]
[BlackElo "2779"]
[TimeControl "180+1"]
[EndTime "9:14:49 PST"]
[Termination "arenal72 won by resignation"]

1. Nf3 {[%clk 0:03:00.9]} 1... c6 {[%clk 0:02:59.3]} 2. e4 {[%clk 0:02:57.6]}
2... d5 {[%clk 0:03:00.2]} 3. d3 {[%clk 0:02:57.4]} 3... Bg4 {[%clk 0:03:00.3]}
4. h3 {[%clk 0:02:57.1]} 4... Bh5 {[%clk 0:03:00.6]} 5. Qe2 {[%clk 0:02:56.7]}
5... e6 {[%clk 0:02:55.9]} 6. g4 {[%clk 0:02:55]} 6... Bg6 {[%clk 0:02:56]} 7.
h4 {[%clk 0:02:54.8]} 7... dxe4 {[%clk 0:02:53]} 8. dxe4 {[%clk 0:02:54]} 8...
Nf6 {[%clk 0:02:53.1]} 9. Nc3 {[%clk 0:02:49.4]} 9... Bb4 {[%clk 0:02:48.6]} 10.
Bd2 {[%clk 0:02:42.8]} 10... Bxc3 {[%clk 0:02:39.1]} 11. Bxc3 {[%clk 0:02:41.2]}
11... Bxe4 {[%clk 0:02:39.4]} 12. Rd1 {[%clk 0:02:26.5]} 12... Nbd7 {[%clk
0:02:26.9]} 13. g5 {[%clk 0:02:15]} 13... Bxf3 {[%clk 0:02:21.9]} 14. Qxf3
{[%clk 0:02:14.3]} 14... Nd5 {[%clk 0:02:21.9]} 15. Bxg7 {[%clk 0:02:13.9]}
15... Rg8 {[%clk 0:02:19.8]} 16. Bd4 {[%clk 0:02:12.8]} 16... Qa5+ {[%clk
0:02:09.5]} 17. c3 {[%clk 0:02:08.6]} 17... Qxa2 {[%clk 0:02:06.7]} 18. Bd3
{[%clk 0:02:05.9]} 18... c5 {[%clk 0:01:39.8]} 19. Bxh7 {[%clk 0:01:52.2]} 19...
cxd4 {[%clk 0:01:39.2]} 20. Bxg8 {[%clk 0:01:52.1]} 20... Ne5 {[%clk 0:01:39.8]}
21. Qe4 {[%clk 0:01:46.9]} 21... Nc6 {[%clk 0:01:08.7]} 22. g6 {[%clk
0:01:39.6]} 22... Nf6 {[%clk 0:00:54.1]} 23. Bxf7+ {[%clk 0:01:36.4]} 23... Kf8
{[%clk 0:00:54.5]} 24. Qf4 {[%clk 0:01:31.2]} 24... Ke7 {[%clk 0:00:50.8]} 25.
O-O {[%clk 0:01:28.4]} 25... Rh8 {[%clk 0:00:48.5]} 26. Rfe1 {[%clk 0:01:17.4]}
26... Nd8 {[%clk 0:00:43.8]} 27. Qc7+ {[%clk 0:01:11.6]} 27... Kf8 {[%clk
0:00:39.4]} 28. Qxd8+ {[%clk 0:01:10]} 28... Kg7 {[%clk 0:00:40]} 29. Qxd4
{[%clk 0:01:09.1]} 29... Qxb2 {[%clk 0:00:35.4]} 30. Rxe6 {[%clk 0:01:07.5]} 1-0

[Event "Early-Titled-Tuesday-Blitz-February-27-2024"]
[Site "Chess.com"]
[Date "2024.02.27"]
[Round "7"]
[White "Mikhail_Golubev"]
[Black "leclash"]
[Result "1-0"]
[WhiteElo "2621"]
[BlackElo "2420"]
[TimeControl "180+1"]
[EndTime "9:14:51 PST"]
[Termination "Mikhail_Golubev won on time"]

1. e4 {[%clk 0:03:00.9]} 1... e5 {[%clk 0:02:13.9]} 2. Nf3 {[%clk 0:03:00.5]}
2... Nc6 {[%clk 0:02:14.2]} 3. Bc4 {[%clk 0:03:00.5]} 3... Bc5 {[%clk
0:02:14.7]} 4. c3 {[%clk 0:03:00.4]} 4... Nf6 {[%clk 0:02:15.3]} 5. d4 {[%clk
0:03:01.1]} 5... exd4 {[%clk 0:02:16.2]} 6. cxd4 {[%clk 0:03:01.6]} 6... Bb4+
{[%clk 0:02:16.8]} 7. Nbd2 {[%clk 0:03:02.1]} 7... Nxe4 {[%clk 0:02:17.4]} 8. d5
{[%clk 0:03:02]} 8... Ne7 {[%clk 0:02:10.6]} 9. O-O {[%clk 0:02:59.5]} 9... Nxd2
{[%clk 0:02:09.5]} 10. Nxd2 {[%clk 0:03:00.4]} 10... O-O {[%clk 0:02:04.1]} 11.
a3 {[%clk 0:02:57.4]} 11... Bxd2 {[%clk 0:01:59.7]} 12. Bxd2 {[%clk 0:02:56]}
12... d6 {[%clk 0:01:56.5]} 13. Rc1 {[%clk 0:02:54.9]} 13... Ng6 {[%clk
0:01:50.5]} 14. f4 {[%clk 0:02:19]} 14... Bf5 {[%clk 0:01:21.7]} 15. Qb3 {[%clk
0:02:15]} 15... Re8 {[%clk 0:01:07.3]} 16. Qxb7 {[%clk 0:02:00.6]} 16... Rb8
{[%clk 0:01:06.5]} 17. Qxa7 {[%clk 0:01:59.9]} 17... Rxb2 {[%clk 0:00:42.9]} 18.
Qd4 {[%clk 0:01:56.2]} 18... Qf6 {[%clk 0:00:17.8]} 19. Qxf6 {[%clk 0:01:50.4]}
19... gxf6 {[%clk 0:00:18.7]} 20. Bc3 {[%clk 0:01:50.6]} 20... Rb7 {[%clk
0:00:12.9]} 21. Bxf6 {[%clk 0:01:49.7]} 21... Ra8 {[%clk 0:00:06.6]} 22. Rf3
{[%clk 0:01:35.9]} 22... h5 {[%clk 0:00:04.1]} 23. Rg3 {[%clk 0:01:29.4]} 23...
h4 {[%clk 0:00:03.1]} 24. Rg5 {[%clk 0:01:28.4]} 24... Be4 {[%clk 0:00:03.3]}
25. f5 {[%clk 0:01:26.6]} 1-0

[Event "Early-Titled-Tuesday-Blitz-February-27-2024"]
[Site "Chess.com"]
[Date "2024.02.27"]
[Round "7"]
[White "destroyer305"]
[Black "PolandHussars"]
[Result "0-1"]
[WhiteElo "2390"]
[BlackElo "2563"]
[TimeControl "180+1"]
[EndTime "9:14:52 PST"]
[Termination "PolandHussars won by resignation"]

1. e4 {[%clk 0:02:56.6]} 1... e5 {[%clk 0:02:57.7]} 2. Nf3 {[%clk 0:02:56.4]}
2... Nc6 {[%clk 0:02:58.2]} 3. d4 {[%clk 0:02:37.9]} 3... exd4 {[%clk
0:02:56.8]} 4. Bc4 {[%clk 0:02:38.8]} 4... Bc5 {[%clk 0:02:53.2]} 5. c3 {[%clk
0:02:38.2]} 5... d3 {[%clk 0:02:50.2]} 6. b4 {[%clk 0:02:37.3]} 6... Bb6 {[%clk
0:02:49.4]} 7. Qb3 {[%clk 0:02:37]} 7... Qe7 {[%clk 0:02:48]} 8. O-O {[%clk
0:02:37.3]} 8... d6 {[%clk 0:02:45.7]} 9. a4 {[%clk 0:02:37]} 9... a5 {[%clk
0:02:39.1]} 10. b5 {[%clk 0:02:34]} 10... Ne5 {[%clk 0:02:39.1]} 11. Nxe5 {[%clk
0:02:33.8]} 11... dxe5 {[%clk 0:02:38.3]} 12. Ba3 {[%clk 0:02:33.7]} 12... Qf6
{[%clk 0:02:38.8]} 13. Nd2 {[%clk 0:02:32.4]} 13... Be6 {[%clk 0:02:35]} 14.
Bxe6 {[%clk 0:02:28.3]} 14... Qxe6 {[%clk 0:02:31.8]} 15. Qxe6+ {[%clk
0:02:28.4]} 15... fxe6 {[%clk 0:02:32.7]} 16. Nc4 {[%clk 0:02:28.9]} 16... Nf6
{[%clk 0:02:31.8]} 17. Nxb6 {[%clk 0:01:39.6]} 17... cxb6 {[%clk 0:02:32.7]} 18.
f3 {[%clk 0:01:39.9]} 18... O-O-O {[%clk 0:02:31.3]} 19. Rfd1 {[%clk 0:01:28.4]}
19... Rd7 {[%clk 0:02:30.5]} 20. Kf2 {[%clk 0:01:28.5]} 20... Rhd8 {[%clk
0:02:28.4]} 21. Ke3 {[%clk 0:01:28.9]} 21... Rc7 {[%clk 0:02:28.9]} 22. Rxd3
{[%clk 0:01:25.6]} 22... Rc4 {[%clk 0:02:25.1]} 23. Be7 {[%clk 0:01:18.2]} 23...
Rd7 {[%clk 0:02:21.2]} 24. Rxd7 {[%clk 0:01:10.5]} 24... Kxd7 {[%clk 0:02:22.1]}
25. Bf8 {[%clk 0:01:01.5]} 25... Rxc3+ {[%clk 0:02:19.9]} 26. Kd2 {[%clk
0:01:00.6]} 26... Rc4 {[%clk 0:02:18.6]} 27. Bxg7 {[%clk 0:00:59.8]} 27... Ke7
{[%clk 0:02:18.9]} 28. Rc1 {[%clk 0:00:56.3]} 28... Rd4+ {[%clk 0:02:17]} 29.
Ke3 {[%clk 0:00:55.3]} 29... Nd7 {[%clk 0:02:17]} 30. Rc7 {[%clk 0:00:53.2]}
30... Rxa4 {[%clk 0:02:17.1]} 31. Bxe5 {[%clk 0:00:51.6]} 31... Rb4 {[%clk
0:02:15.2]} 32. g4 {[%clk 0:00:43.5]} 32... Rxb5 {[%clk 0:02:15.3]} 33. f4
{[%clk 0:00:30.6]} 33... Kd8 {[%clk 0:02:14.8]} 34. Bd6 {[%clk 0:00:30.6]} 34...
Rb3+ {[%clk 0:02:11.1]} 35. Kd4 {[%clk 0:00:28.5]} 35... Rb1 {[%clk 0:02:06.7]}
36. Rxb7 {[%clk 0:00:27.3]} 36... Rd1+ {[%clk 0:02:06.8]} 37. Ke3 {[%clk
0:00:22]} 37... Rxd6 {[%clk 0:02:07.2]} 38. f5 {[%clk 0:00:22.9]} 38... exf5
{[%clk 0:02:06.8]} 39. gxf5 {[%clk 0:00:23.2]} 39... a4 {[%clk 0:02:07.2]} 40.
Kf4 {[%clk 0:00:23.1]} 40... a3 {[%clk 0:02:07.4]} 41. e5 {[%clk 0:00:23.8]}
41... Rd4+ {[%clk 0:02:07.1]} 42. Ke3 {[%clk 0:00:24.2]} 42... Ra4 {[%clk
0:02:03.3]} 43. e6 {[%clk 0:00:24.7]} 43... Nf6 {[%clk 0:01:57.8]} 0-1

[Event "Early-Titled-Tuesday-Blitz-February-27-2024"]
[Site "Chess.com"]
[Date "2024.02.27"]
[Round "7"]
[White "jamengrand"]
[Black "maciek_92"]
[Result "0-1"]
[WhiteElo "2413"]
[BlackElo "2840"]
[TimeControl "180+1"]
[EndTime "9:14:56 PST"]
[Termination "maciek_92 won by resignation"]

1. e4 {[%clk 0:03:00.9]} 1... c5 {[%clk 0:02:59.6]} 2. Nf3 {[%clk 0:03:01.1]}
2... e6 {[%clk 0:02:59.8]} 3. d4 {[%clk 0:03:00]} 3... cxd4 {[%clk 0:03:00.7]}
4. Bg5 {[%clk 0:03:00.2]} 4... Qa5+ {[%clk 0:02:55.6]} 5. c3 {[%clk 0:02:59.7]}
5... Nf6 {[%clk 0:02:41.7]} 6. Bd3 {[%clk 0:02:51.8]} 6... Nc6 {[%clk
0:02:34.4]} 7. O-O {[%clk 0:02:50.6]} 7... dxc3 {[%clk 0:02:33.7]} 8. Nxc3
{[%clk 0:02:50.1]} 8... Be7 {[%clk 0:02:25.3]} 9. Re1 {[%clk 0:02:42.1]} 9... d6
{[%clk 0:02:07.3]} 10. Rc1 {[%clk 0:02:24.6]} 10... h6 {[%clk 0:02:01.8]} 11.
Bd2 {[%clk 0:02:10.2]} 11... Qd8 {[%clk 0:02:01.2]} 12. h3 {[%clk 0:01:48.1]}
12... O-O {[%clk 0:02:00.6]} 13. Be3 {[%clk 0:01:28.8]} 13... e5 {[%clk
0:02:00.3]} 14. Nd5 {[%clk 0:01:21]} 14... Nxd5 {[%clk 0:01:55.8]} 15. exd5
{[%clk 0:01:20.8]} 15... Nb4 {[%clk 0:01:56.3]} 16. Bb1 {[%clk 0:01:15]} 16...
f5 {[%clk 0:01:54.9]} 17. Qb3 {[%clk 0:01:11.2]} 17... Na6 {[%clk 0:01:42.1]}
18. Nxe5 {[%clk 0:01:11.3]} 18... dxe5 {[%clk 0:01:38.5]} 19. d6+ {[%clk
0:01:11.3]} 19... Kh8 {[%clk 0:01:38.8]} 20. dxe7 {[%clk 0:01:06.4]} 20... Qxe7
{[%clk 0:01:39.7]} 21. Bd3 {[%clk 0:01:03.9]} 21... b6 {[%clk 0:01:10.2]} 22.
Rc6 {[%clk 0:00:44.9]} 22... Nb4 {[%clk 0:01:00.9]} 23. Qa3 {[%clk 0:00:28.8]}
23... Nxc6 {[%clk 0:00:59.3]} 0-1

[Event "Early-Titled-Tuesday-Blitz-February-27-2024"]
[Site "Chess.com"]
[Date "2024.02.27"]
[Round "7"]
[White "balack95"]
[Black "abelmat"]
[Result "1-0"]
[WhiteElo "2463"]
[BlackElo "2063"]
[TimeControl "180+1"]
[EndTime "9:15:09 PST"]
[Termination "balack95 won by checkmate"]

1. Nf3 {[%clk 0:03:00.9]} 1... Nf6 {[%clk 0:02:59.1]} 2. e3 {[%clk 0:03:01.4]}
2... e6 {[%clk 0:02:59.2]} 3. b3 {[%clk 0:03:02]} 3... d5 {[%clk 0:02:59.4]} 4.
Bb2 {[%clk 0:03:02.6]} 4... Be7 {[%clk 0:03:00]} 5. Be2 {[%clk 0:03:03.2]} 5...
O-O {[%clk 0:03:00.4]} 6. O-O {[%clk 0:03:04]} 6... b6 {[%clk 0:03:01]} 7. c4
{[%clk 0:03:04.1]} 7... Bb7 {[%clk 0:03:01.2]} 8. Nc3 {[%clk 0:03:04.4]} 8... c5
{[%clk 0:03:01.2]} 9. cxd5 {[%clk 0:03:04.9]} 9... exd5 {[%clk 0:03:00.5]} 10.
d4 {[%clk 0:03:05]} 10... Ne4 {[%clk 0:02:53.5]} 11. Rc1 {[%clk 0:02:58.9]}
11... Nxc3 {[%clk 0:02:53.3]} 12. Bxc3 {[%clk 0:02:58.9]} 12... Nd7 {[%clk
0:02:50.7]} 13. Qd2 {[%clk 0:02:59.1]} 13... Rc8 {[%clk 0:02:47.2]} 14. Qb2
{[%clk 0:02:58.8]} 14... Bf6 {[%clk 0:02:43.3]} 15. Ne5 {[%clk 0:02:55.3]} 15...
Bxe5 {[%clk 0:02:36]} 16. dxe5 {[%clk 0:02:55.1]} 16... Qg5 {[%clk 0:02:02.1]}
17. f4 {[%clk 0:02:53.7]} 17... Qh6 {[%clk 0:01:54.5]} 18. Bg4 {[%clk
0:02:49.8]} 18... Rcd8 {[%clk 0:01:53.9]} 19. f5 {[%clk 0:02:19.7]} 19... Qxe3+
{[%clk 0:01:46.9]} 20. Kh1 {[%clk 0:02:19.8]} 20... d4 {[%clk 0:01:45.4]} 21.
Bd2 {[%clk 0:02:12.7]} 21... Bxg2+ {[%clk 0:01:03.5]} 22. Kxg2 {[%clk
0:02:11.7]} 22... Qxe5 {[%clk 0:00:49.9]} 23. Bf4 {[%clk 0:02:03]} 23... Qd5+
{[%clk 0:00:46.4]} 24. Kg3 {[%clk 0:02:02.9]} 24... Nf6 {[%clk 0:00:43.8]} 25.
Rce1 {[%clk 0:01:53.7]} 25... Ne4+ {[%clk 0:00:32.7]} 26. Kh3 {[%clk 0:01:52.9]}
26... f6 {[%clk 0:00:25.5]} 27. Qg2 {[%clk 0:01:50.6]} 27... d3 {[%clk
0:00:22.9]} 28. Qxe4 {[%clk 0:01:47]} 28... Qxe4 {[%clk 0:00:20.2]} 29. Rxe4
{[%clk 0:01:47.9]} 29... d2 {[%clk 0:00:21.1]} 30. Rd1 {[%clk 0:01:43.4]} 30...
h6 {[%clk 0:00:18.6]} 31. Rxd2 {[%clk 0:01:42.5]} 31... Rxd2 {[%clk 0:00:17.3]}
32. Bxd2 {[%clk 0:01:43.4]} 32... Rd8 {[%clk 0:00:18]} 33. Re2 {[%clk
0:01:43.8]} 33... Rd3+ {[%clk 0:00:18]} 34. Kg2 {[%clk 0:01:44.2]} 34... b5
{[%clk 0:00:16.9]} 35. Bh5 {[%clk 0:01:39.5]} 35... c4 {[%clk 0:00:14.3]} 36.
Re8+ {[%clk 0:01:38.1]} 36... Kh7 {[%clk 0:00:11.1]} 37. Bg6# {[%clk 0:01:39]}
1-0

[Event "Early-Titled-Tuesday-Blitz-February-27-2024"]
[Site "Chess.com"]
[Date "2024.02.27"]
[Round "7"]
[White "NLLO777"]
[Black "pr1105"]
[Result "1-0"]
[WhiteElo "2547"]
[BlackElo "2327"]
[TimeControl "180+1"]
[EndTime "9:15:10 PST"]
[Termination "NLLO777 won by resignation"]

1. e4 {[%clk 0:03:00.9]} 1... e5 {[%clk 0:02:58.5]} 2. Nf3 {[%clk 0:03:00.8]}
2... Nc6 {[%clk 0:02:59]} 3. Bc4 {[%clk 0:02:58.8]} 3... Bc5 {[%clk 0:02:58.5]}
4. O-O {[%clk 0:02:58.6]} 4... Nf6 {[%clk 0:02:51]} 5. d3 {[%clk 0:02:57.4]}
5... d6 {[%clk 0:02:45.7]} 6. h3 {[%clk 0:02:54.4]} 6... h6 {[%clk 0:02:41.6]}
7. c3 {[%clk 0:02:52.8]} 7... a6 {[%clk 0:02:39.6]} 8. a4 {[%clk 0:02:51.5]}
8... Ba7 {[%clk 0:02:39.2]} 9. Re1 {[%clk 0:02:50.8]} 9... g5 {[%clk 0:02:37.9]}
10. Nh2 {[%clk 0:02:46.9]} 10... Qe7 {[%clk 0:02:32.6]} 11. Nd2 {[%clk
0:02:42.4]} 11... Bd7 {[%clk 0:02:28.6]} 12. b4 {[%clk 0:02:40.5]} 12... h5
{[%clk 0:02:26.8]} 13. Ndf1 {[%clk 0:02:34.3]} 13... g4 {[%clk 0:02:17.5]} 14.
h4 {[%clk 0:02:32.8]} 14... Nh7 {[%clk 0:02:07.6]} 15. g3 {[%clk 0:02:32.7]}
15... f5 {[%clk 0:01:53.7]} 16. exf5 {[%clk 0:02:31.2]} 16... Bxf5 {[%clk
0:01:54.6]} 17. Be3 {[%clk 0:02:31.5]} 17... Bxe3 {[%clk 0:01:39.9]} 18. Nxe3
{[%clk 0:02:32.4]} 18... Be6 {[%clk 0:01:37.1]} 19. Qb3 {[%clk 0:02:30.9]} 19...
Bxc4 {[%clk 0:01:31.2]} 20. Qxc4 {[%clk 0:02:31.8]} 20... Nf6 {[%clk 0:01:23.7]}
21. Nhf1 {[%clk 0:02:22.9]} 21... Qf7 {[%clk 0:01:10.1]} 22. d4 {[%clk
0:02:00.8]} 22... d5 {[%clk 0:00:49.3]} 23. Qc5 {[%clk 0:01:58.6]} 23... e4
{[%clk 0:00:47]} 24. b5 {[%clk 0:01:51.5]} 24... Na5 {[%clk 0:00:38.1]} 25. Qb4
{[%clk 0:01:44.6]} 25... axb5 {[%clk 0:00:31.8]} 26. axb5 {[%clk 0:01:36.4]}
26... b6 {[%clk 0:00:31.6]} 27. Nd2 {[%clk 0:01:37]} 27... Rf8 {[%clk 0:00:20]}
28. Nb3 {[%clk 0:01:28.1]} 28... Nd7 {[%clk 0:00:13.5]} 29. Rf1 {[%clk
0:01:23.9]} 29... Qf3 {[%clk 0:00:08.6]} 30. Nxa5 {[%clk 0:01:22.6]} 30... bxa5
{[%clk 0:00:08.7]} 31. Rxa5 {[%clk 0:01:23.5]} 31... Rxa5 {[%clk 0:00:09.3]} 32.
Qxa5 {[%clk 0:01:24.4]} 32... Qe2 {[%clk 0:00:08]} 33. Qxc7 {[%clk 0:01:22.1]}
33... Ke7 {[%clk 0:00:07.8]} 34. Nxd5+ {[%clk 0:01:20.6]} 1-0

[Event "Early-Titled-Tuesday-Blitz-February-27-2024"]
[Site "Chess.com"]
[Date "2024.02.27"]
[Round "7"]
[White "kingofthenil"]
[Black "viktorgen2021"]
[Result "1-0"]
[WhiteElo "2746"]
[BlackElo "2530"]
[TimeControl "180+1"]
[EndTime "9:15:15 PST"]
[Termination "kingofthenil won on time"]

1. e4 {[%clk 0:03:00.9]} 1... g6 {[%clk 0:02:54.6]} 2. d4 {[%clk 0:02:54.4]}
2... Bg7 {[%clk 0:02:49.5]} 3. Nc3 {[%clk 0:02:51.5]} 3... d6 {[%clk 0:02:38.3]}
4. h4 {[%clk 0:02:51.6]} 4... h5 {[%clk 0:02:33.7]} 5. Bg5 {[%clk 0:02:48.5]}
5... c6 {[%clk 0:02:33]} 6. Bc4 {[%clk 0:02:48.3]} 6... Nd7 {[%clk 0:01:39.3]}
7. Qf3 {[%clk 0:02:45.5]} 7... Ngf6 {[%clk 0:01:35.1]} 8. O-O-O {[%clk
0:02:46.1]} 8... e5 {[%clk 0:01:33.7]} 9. dxe5 {[%clk 0:02:43]} 9... Nxe5 {[%clk
0:01:32.2]} 10. Qe2 {[%clk 0:02:43.9]} 10... Nxc4 {[%clk 0:01:23]} 11. Qxc4
{[%clk 0:02:42.4]} 11... Be6 {[%clk 0:01:12.9]} 12. Qb4 {[%clk 0:02:38.2]} 12...
c5 {[%clk 0:00:59.6]} 13. Qb5+ {[%clk 0:02:34.3]} 13... Bd7 {[%clk 0:00:58.9]}
14. Qd3 {[%clk 0:02:30.4]} 14... O-O {[%clk 0:00:52.8]} 15. e5 {[%clk
0:02:24.4]} 15... Bf5 {[%clk 0:00:49.1]} 16. Qg3 {[%clk 0:02:05.7]} 16... Ne4
{[%clk 0:00:38.7]} 17. Nxe4 {[%clk 0:02:02.5]} 17... Qa5 {[%clk 0:00:36.3]} 18.
Nf6+ {[%clk 0:02:02.4]} 18... Bxf6 {[%clk 0:00:31.8]} 19. Bxf6 {[%clk
0:02:03.3]} 19... Qxa2 {[%clk 0:00:32.1]} 20. Qa3 {[%clk 0:02:03.6]} 20... Qc4
{[%clk 0:00:29.8]} 21. Qb3 {[%clk 0:02:04]} 21... Qf4+ {[%clk 0:00:26.1]} 22.
Qe3 {[%clk 0:02:04.6]} 22... Qc4 {[%clk 0:00:24.5]} 23. Qc3 {[%clk 0:01:55]}
23... Qf4+ {[%clk 0:00:19.4]} 24. Rd2 {[%clk 0:01:53.3]} 24... Rad8 {[%clk
0:00:16.7]} 25. Nh3 {[%clk 0:01:51.1]} 25... Qa4 {[%clk 0:00:16.3]} 26. Qa3
{[%clk 0:01:47.5]} 26... Qc4 {[%clk 0:00:14.9]} 27. Qb3 {[%clk 0:01:45.6]} 27...
Qa6 {[%clk 0:00:14.4]} 28. Qa3 {[%clk 0:01:42.8]} 28... Qc4 {[%clk 0:00:13.4]}
29. Bxd8 {[%clk 0:01:43.1]} 29... Rxd8 {[%clk 0:00:13.6]} 30. b3 {[%clk
0:01:41.3]} 30... Qc3 {[%clk 0:00:12.8]} 31. Qb2 {[%clk 0:01:41.6]} 31... Qa5
{[%clk 0:00:12.7]} 32. exd6 {[%clk 0:01:40.4]} 32... c4 {[%clk 0:00:10.7]} 33.
bxc4 {[%clk 0:01:40.3]} 33... Qc5 {[%clk 0:00:07.9]} 34. Nf4 {[%clk 0:01:37.5]}
34... Rd7 {[%clk 0:00:04.5]} 35. Nd5 {[%clk 0:01:37.7]} 35... Rxd6 {[%clk
0:00:04.7]} 36. Re1 {[%clk 0:01:32.5]} 36... Be6 {[%clk 0:00:02.1]} 37. Nf6+
{[%clk 0:01:31.6]} 37... Kf8 {[%clk 0:00:01.7]} 38. Ne4 {[%clk 0:01:32.5]} 1-0

[Event "Early-Titled-Tuesday-Blitz-February-27-2024"]
[Site "Chess.com"]
[Date "2024.02.27"]
[Round "7"]
[White "Dyadya81"]
[Black "azikom"]
[Result "1-0"]
[WhiteElo "2851"]
[BlackElo "2626"]
[TimeControl "180+1"]
[EndTime "9:15:16 PST"]
[Termination "Dyadya81 won on time"]

1. e4 {[%clk 0:03:00.9]} 1... c6 {[%clk 0:02:56]} 2. d3 {[%clk 0:02:57.3]} 2...
d5 {[%clk 0:02:55.5]} 3. Nf3 {[%clk 0:02:57.3]} 3... dxe4 {[%clk 0:02:55.4]} 4.
dxe4 {[%clk 0:02:56.8]} 4... Qxd1+ {[%clk 0:02:56.3]} 5. Kxd1 {[%clk 0:02:57.7]}
5... g6 {[%clk 0:02:56.2]} 6. h3 {[%clk 0:02:54.4]} 6... Bh6 {[%clk 0:02:55.6]}
7. Bxh6 {[%clk 0:02:50.5]} 7... Nxh6 {[%clk 0:02:55.3]} 8. a4 {[%clk 0:02:51.4]}
8... f6 {[%clk 0:02:53.8]} 9. e5 {[%clk 0:02:48.2]} 9... Nf7 {[%clk 0:02:52.4]}
10. exf6 {[%clk 0:02:46.1]} 10... exf6 {[%clk 0:02:53.3]} 11. Bc4 {[%clk
0:02:46.4]} 11... O-O {[%clk 0:02:48.5]} 12. Nbd2 {[%clk 0:02:42.9]} 12... Rd8
{[%clk 0:02:47.4]} 13. Re1 {[%clk 0:02:38.7]} 13... Kf8 {[%clk 0:02:44.3]} 14.
Ra3 {[%clk 0:02:38.8]} 14... Nd7 {[%clk 0:02:30.2]} 15. a5 {[%clk 0:02:28]}
15... Nde5 {[%clk 0:02:23.9]} 16. Bxf7 {[%clk 0:02:25.1]} 16... Nxf7 {[%clk
0:02:23.3]} 17. Kc1 {[%clk 0:02:24.8]} 17... Bf5 {[%clk 0:02:09.3]} 18. g4
{[%clk 0:02:20.8]} 18... Bd7 {[%clk 0:02:08.7]} 19. Ne4 {[%clk 0:02:18.7]} 19...
f5 {[%clk 0:01:56.5]} 20. Nf6 {[%clk 0:02:13.6]} 20... fxg4 {[%clk 0:01:45.1]}
21. hxg4 {[%clk 0:02:13.8]} 21... h6 {[%clk 0:01:27.9]} 22. Ne5 {[%clk
0:02:05.4]} 22... Nxe5 {[%clk 0:01:18.6]} 23. Rxe5 {[%clk 0:02:06.3]} 23... Be8
{[%clk 0:01:15]} 24. Rf3 {[%clk 0:02:01.9]} 24... Bf7 {[%clk 0:00:21.1]} 25.
Nh7+ {[%clk 0:01:58.4]} 25... Kg8 {[%clk 0:00:21.1]} 26. Re7 {[%clk 0:01:53.6]}
26... Bc4 {[%clk 0:00:15.6]} 27. Nf6+ {[%clk 0:01:31]} 27... Kf8 {[%clk
0:00:15.2]} 28. Rxb7 {[%clk 0:01:30.2]} 28... Be2 {[%clk 0:00:14.6]} 29. Nd7+
{[%clk 0:01:26.8]} 29... Kg7 {[%clk 0:00:05.9]} 30. Re3 {[%clk 0:01:25.2]} 30...
Ba6 {[%clk 0:00:03.3]} 31. Re7+ {[%clk 0:01:23.2]} 1-0